[Event "German Championship Women 2022"]
[Site "Magdeburg"]
[Date "2022.08.15"]
[Round "2.10"]
[White "Moenster, Madita"]
[Black "Heil, Marina"]
[Result "1-0"]
[ECO "B32"]
[WhiteElo "1864"]
[BlackElo "1926"]
[Annotator "NA RC"]
[PlyCount "107"]
[EventDate "2022.08.14"]
[EventType "swiss"]
[EventCountry "GER"]
[SourceTitle "playchess.com"]
[Source "ChessBase"]
[SourceQuality "1"]
[TimeControl "40/5400+30:1800+30"]

1. e4 {[%emt 0:00:03]} c5 {[%emt 0:00:07]} 2. Nf3 {[%emt 0:00:07]} Nc6 {[%emt 0:00:11]} 3. d4 {[%emt 0:00:06]} cxd4 {[%emt 0:00:09]} 4. Nxd4 {[%emt 0:00:10]} e5 {[%emt 0:00:32]} 5. Nb5 {[%emt 0:00:09]} d6 {[%emt 0:00:11]} 6. N1c3 {[%emt 0:00:09]} a6 {[%emt 0:00:11]} 7. Na3 {[%emt 0:00:07]} b5 {[%emt 0:00:16]} 8. Nd5 {[%emt 0:00:09]} Nce7 {[%emt 0:00:28]} 9. c4 {[%emt 0:00:55]} Nxd5 {[%emt 0:00:30]} 10. exd5 {[%emt 0:02:19]} bxc4 {[%emt 0:01:40]} 11. Nxc4 {[%emt 0:00:53]} Be7 {[%emt 0:01:56]} 12. Be3 {[%emt 0:03:52]} Nf6 {[%emt 0:05:58]} 13. Be2 {[%emt 0:04:19]} O-O {[%emt 0:03:10]} 14. a4 {[%emt 0:04:15]} Rb8 {[%emt 0:04:39]} 15. O-O {[%emt 0:05:19]} Bb7 {[%emt 0:07:26]} 16. Nb6 {[%emt 0:05:12]} a5 {[%emt 0:01:22]} 17. b4 {[%emt 0:12:41]} axb4 {[%emt 0:02:22]} 18. Qb3 {[%emt 0:03:04]} Ne4 {[%emt 0:07:15]} 19. a5 {[%emt 0:02:26]} Nc5 {[%emt 0:03:37]} 20. Qd1 {[%emt 0:06:19]} Ba8 $14 {[%emt 0:02:43]} (20... Bg5 $1 $15) 21. Bc4 {[%emt 0:03:56]} Rxb6 {[%emt 0:05:05]} 22. axb6 {[%emt 0:00:29]} Qxb6 {[%emt 0:00:07]} 23. Rb1 {[%emt 0:06:11]} Rb8 {[%emt 0:02:21]} 24. Qg4 {[%emt 0:05:04]} Bb7 {[%emt 0:04:15]} 25. Rfc1 {[%emt 0:11:31]} Bc8 {[%emt 0:08:45]} 26. Qf3 {[%emt 0:03:39]} Bf6 {[%emt 0:08:47]} 27. Bb3 {[%emt 0:05:40]} Ba6 {[%emt 0:04:11]} 28. Qg3 {[%emt 0:02:54]} Qb5 {[%emt 0:07:17]} 29. Bxc5 {[%emt 0:01:56]} dxc5 {[%emt 0:01:06]} 30. Bc4 {[%emt 0:00:33]} Qb6 {[%emt 0:06:54]} 31. Bxa6 {[%emt 0:00:29]} Qxa6 {[%emt 0:00:09]} 32. Rxc5 {[%emt 0:00:47]} g6 {[%emt 0:01:53]} 33. Rc6 {[%emt 0:02:33]} Qa2 {[%emt 0:00:24]} 34. Qb3 {[%emt 0:01:22]} Qxb3 {[%emt 0:01:28]} 35. Rxb3 {[%emt 0:00:05]} Be7 {[%emt 0:00:46]} 36. Kf1 {[%emt 0:05:01]} Rd8 {[%emt 0:00:41]} 37. Rd3 {[%emt 0:00:28]} Bd6 {[%emt 0:01:46]} 38. Rb6 {[%emt 0:01:08]} Bc5 {[%emt 0:01:46]} 39. Rb5 {[%emt 0:01:10]} Bd4 {[%emt 0:00:08]} 40. Ke2 {[%emt 0:01:46]} Rd6 {[%emt 0:00:41]} 41. Rb3 {[%emt 0:01:49]} Bc3 {[%emt 0:00:19]} 42. Kd3 {[%emt 0:00:47]} f5 {[%emt 0:01:01]} 43. Kc4 {[%emt 0:02:19]} Kf8 {[%emt 0:01:07]} 44. Rb7 {[%emt 0:04:12]} h6 {[%emt 0:01:21]} 45. Kc5 {[%emt 0:02:01]} Rd8 {[%emt 0:00:17]} 46. d6 {[%emt 0:01:05]} e4 {[%emt 0:03:40]} 47. Kd5 {[%emt 0:03:47]} Ke8 {[%emt 0:07:29]} 48. Ke6 {[%emt 0:02:09]} f4 {[%emt 0:00:55]} 49. d7+ {[%emt 0:05:35]} Kf8 {[%emt 0:02:04]} 50. Rc7 {[%emt 0:00:36]} Kg7 {[%emt 0:01:33]} 51. Rc8 {[%emt 0:01:09]} e3 {[%emt 0:01:41]} 52. fxe3 {[%emt 0:00:24]} fxe3 {[%emt 0:00:10]} 53. Rxd8 {[%emt 0:00:51]} e2 {[%emt 0:00:56]} 54. Rb1 {[%emt 0:00:16]} 1-0

[Event "German Championship Women 2022"]
[Site "Magdeburg"]
[Date "2022.08.15"]
[Round "2.11"]
[White "Petersen, Sophie"]
[Black "Braun, Kristin"]
[Result "1-0"]
[ECO "B52"]
[WhiteElo "1597"]
[BlackElo "1897"]
[Annotator "NA RC"]
[PlyCount "133"]
[EventDate "2022.08.14"]
[EventType "swiss"]
[EventCountry "GER"]
[SourceTitle "playchess.com"]
[Source "ChessBase"]
[SourceQuality "1"]
[TimeControl "40/5400+30:1800+30"]

1. e4 {[%emt 0:00:02]} c5 {[%emt 0:00:02]} 2. Nf3 {[%emt 0:00:07]} d6 {[%emt 0:00:04]} 3. Bb5+ {[%emt 0:00:05]} Bd7 {[%emt 0:00:03]} 4. Bxd7+ {[%emt 0:00:07]} Qxd7 {[%emt 0:00:05]} 5. c4 {[%emt 0:00:12]} Nf6 {[%emt 0:00:06]} 6. Nc3 {[%emt 0:00:10]} Nc6 {[%emt 0:00:09]} 7. d4 {[%emt 0:00:23]} cxd4 {[%emt 0:00:03]} 8. Nxd4 {[%emt 0:00:08]} g6 {[%emt 0:00:05]} 9. f3 {[%emt 0:00:16]} Bg7 {[%emt 0:00:04]} 10. Be3 {[%emt 0:00:12]} O-O {[%emt 0:00:07]} 11. O-O {[%emt 0:00:21]} a6 {[%emt 0:00:02]} 12. Qd2 {[%emt 0:01:47]} Rab8 {[%emt 0:04:17]} 13. Rac1 {[%emt 0:04:15]} Rfc8 {[%emt 0:01:15]} 14. b3 {[%emt 0:03:08]} Qc7 $14 {[%emt 0:06:35]} (14... Nxd4 $11 15. Bxd4 (15. Qxd4 Ng4 $11) 15... b5) 15. Nd5 {[%emt 0:02:11]} Qd8 {[%emt 0:05:37]} 16. Rfd1 {[%emt 0:04:00]} Nd7 {[%emt 0:09:18]} 17. a4 {[%emt 0:06:38]} Nc5 {[%emt 0:06:09]} 18. Rb1 {[%emt 0:04:38]} Ne5 {[%emt 0:15:03]} 19. h3 {[%emt 0:12:30]} h5 {[%emt 0:17:41]} 20. Bg5 {[%emt 0:05:19]} f6 {[%emt 0:11:53]} 21. Be3 {[%emt 0:03:31]} Nc6 {[%emt 0:05:05]} 22. Qa2 {[%emt 0:09:01]} a5 {[%emt 0:05:59]} 23. Nb5 {[%emt 0:02:39]} b6 {[%emt 0:02:19]} 24. Qd2 {[%emt 0:02:50]} Ne5 {[%emt 0:02:22]} 25. Bxc5 {[%emt 0:04:20]} bxc5 {[%emt 0:02:33]} 26. f4 {[%emt 0:00:27]} Nc6 {[%emt 0:00:15]} 27. f5 {[%emt 0:04:19]} gxf5 {[%emt 0:03:45]} 28. exf5 {[%emt 0:00:12]} Kf7 {[%emt 0:00:40]} 29. Qe2 {[%emt 0:00:29]} Qh8 {[%emt 0:01:37]} 30. Qe6+ {[%emt 0:00:42]} Kf8 {[%emt 0:00:07]} 31. Nf4 {[%emt 0:00:47]} Ne5 {[%emt 0:01:07]} 32. Nd5 {[%emt 0:03:22]} Nc6 {[%emt 0:00:52]} 33. Re1 {[%emt 0:05:00]} Qg8 {[%emt 0:00:58]} 34. Qd7 {[%emt 0:05:28]} Qf7 {[%emt 0:00:27]} 35. Nbc7 {[%emt 0:01:01]} Ne5 {[%emt 0:00:42]} 36. Ne6+ Kg8 37. Nxe7+ {[%emt 0:02:13]} Kh7 {[%emt 0:00:19]} 38. Qxd6 {[%emt 0:00:30]} Bh6 {[%emt 0:01:07]} 39. Nd5 Rg8 {[%emt 0:00:31]} 40. Nxf6+ {[%emt 0:02:38]} Qxf6 {[%emt 0:00:20]} 41. Qxe5 {[%emt 0:30:30]} Qxe5 {[%emt 0:04:26]} 42. Rxe5 {[%emt 0:00:00]} Rg3 {[%emt 0:02:14]} 43. Kf2 {[%emt 0:00:00]} Rbg8 {[%emt 0:07:22]} 44. Rd1 {[%emt 0:00:00]} Rxg2+ {[%emt 0:00:11]} 45. Kf3 {[%emt 0:00:00]} R2g3+ {[%emt 0:02:49]} 46. Ke4 {[%emt 0:00:00]} Rxb3 {[%emt 0:03:24]} 47. Rd7+ {[%emt 0:00:00]} Kh8 {[%emt 0:00:27]} 48. Nf4 {[%emt 0:00:00]} Bxf4 {[%emt 0:03:26]} 49. Kxf4 {[%emt 0:00:00]} Rxh3 {[%emt 0:00:15]} 50. Rxc5 {[%emt 0:00:00]} Rg7 {[%emt 0:06:40]} 51. Rxg7 {[%emt 0:00:00]} Kxg7 {[%emt 0:00:01]} 52. Kg5 {[%emt 0:00:00]} h4 {[%emt 0:04:06]} 53. Rxa5 {[%emt 0:00:00]} Rc3 {[%emt 0:00:35]} 54. Ra7+ {[%emt 0:00:00]} Kf8 {[%emt 0:00:16]} 55. Kxh4 {[%emt 0:00:00]} Rxc4+ {[%emt 0:00:08]} 56. Kg5 {[%emt 0:00:00]} Rc6 {[%emt 0:01:30]} 57. a5 {[%emt 0:00:00]} Rd6 {[%emt 0:00:11]} 58. a6 {[%emt 0:00:00]} Rb6 {[%emt 0:00:12]} 59. f6 {[%emt 0:00:00]} Rb1 {[%emt 0:00:12]} 60. Rc7 {[%emt 0:00:00]} Rg1+ {[%emt 0:01:17]} 61. Kf5 {[%emt 0:00:00]} Rf1+ {[%emt 0:00:43]} 62. Ke6 {[%emt 0:00:00]} Re1+ {[%emt 0:00:09]} 63. Kd7 {[%emt 0:00:00]} Kf7 {[%emt 0:00:47]} 64. a7 {[%emt 0:00:00]} Ra1 {[%emt 0:00:07]} 65. Kc8+ {[%emt 0:00:00]} Kxf6 {[%emt 0:00:09]} 66. Kb8 {[%emt 0:00:00]} Rb1+ {[%emt 0:00:22]} 67. Rb7 {[%emt 0:00:00]} 1-0

[Event "German Championship Women 2022"]
[Site "Magdeburg"]
[Date "2022.08.15"]
[Round "2.12"]
[White "Spiel, Marianne"]
[Black "Mader, Lena"]
[Result "1/2-1/2"]
[ECO "B10"]
[WhiteElo "1893"]
[BlackElo "1826"]
[Annotator "NA RC"]
[PlyCount "86"]
[EventDate "2022.08.14"]
[EventType "swiss"]
[EventCountry "GER"]
[SourceTitle "playchess.com"]
[Source "ChessBase"]
[SourceQuality "1"]
[TimeControl "40/5400+30:1800+30"]

1. e4 {[%emt 0:00:03]} c6 {[%emt 0:00:04]} 2. c4 {[%emt 0:00:05]} d5 {[%emt 0:00:03]} 3. exd5 {[%emt 0:00:19]} cxd5 {[%emt 0:00:01]} 4. cxd5 {[%emt 0:00:09]} Qxd5 {[%emt 0:00:05]} 5. Nc3 {[%emt 0:00:23]} Qa5 {[%emt 0:00:05]} 6. d4 {[%emt 0:00:38]} Nf6 {[%emt 0:00:09]} 7. Nf3 {[%emt 0:01:00]} e6 {[%emt 0:00:16]} 8. Be2 {[%emt 0:01:08]} Be7 {[%emt 0:00:22]} 9. O-O {[%emt 0:00:59]} O-O {[%emt 0:00:20]} 10. Bf4 {[%emt 0:05:21]} Nc6 {[%emt 0:00:59]} 11. Qd2 {[%emt 0:05:51]} Bd7 {[%emt 0:06:38]} 12. Rfd1 {[%emt 0:02:43]} Rfd8 {[%emt 0:01:10]} 13. a3 {[%emt 0:11:14]} Re8 {[%emt 0:11:05]} (13... Qb6 $11 {remains equal.}) 14. b4 {[%emt 0:09:31]} Qd8 {[%emt 0:00:10]} 15. Ne5 {[%emt 0:17:27]} Nd5 {[%emt 0:06:44]} 16. Nxd5 {[%emt 0:01:22]} exd5 {[%emt 0:00:07]} 17. Nxd7 {[%emt 0:01:46]} Qxd7 {[%emt 0:00:13]} 18. b5 {[%emt 0:06:30]} Nd8 {[%emt 0:04:54]} 19. a4 {[%emt 0:02:42]} Bd6 {[%emt 0:08:30]} 20. Bf3 {[%emt 0:08:55]} Bxf4 {[%emt 0:07:56]} 21. Qxf4 $11 {[%emt 0:00:17]} Ne6 {[%emt 0:00:21]} 22. Qf5 {[%emt 0:03:17]} Rad8 {[%emt 0:01:39]} 23. Rac1 {[%emt 0:01:03]} Nxd4 {[%emt 0:12:42]} 24. Qd3 {[%emt 0:06:36]} Nxf3+ {[%emt 0:01:13]} 25. Qxf3 {[%emt 0:00:26]} h6 {[%emt 0:08:11]} 26. h3 {[%emt 0:00:52]} Re6 {[%emt 0:09:31]} 27. Rd4 {[%emt 0:05:33]} a6 {[%emt 0:02:54]} 28. bxa6 {[%emt 0:02:03]} Rxa6 {[%emt 0:01:44]} 29. Qb3 {[%emt 0:00:15]} Rc6 {[%emt 0:02:19]} 30. Rb1 {[%emt 0:01:17]} b6 {[%emt 0:01:16]} 31. Qb5 {[%emt 0:01:07]} Rg6 {[%emt 0:02:38]} 32. Qxd7 {[%emt 0:00:29]} Rxd7 {[%emt 0:00:01]} 33. Rb5 {[%emt 0:00:19]} Rgd6 {[%emt 0:01:19]} 34. Rdb4 {[%emt 0:01:12]} Ra7 {[%emt 0:01:40]} 35. Kf1 {[%emt 0:02:17]} Kf8 {[%emt 0:03:02]} 36. Ke2 {[%emt 0:01:11]} Ke7 {[%emt 0:00:16]} 37. Kd3 {[%emt 0:00:06]} Kd7 {[%emt 0:01:01]} 38. Kd4 {[%emt 0:00:28]} Kc7 {[%emt 0:05:25]} 39. Rxd5 {[%emt 0:00:52]} Rxd5+ {[%emt 0:00:05]} 40. Kxd5 {[%emt 0:00:05]} Ra5+ {[%emt 0:00:11]} 41. Kd4 {[%emt 0:31:39]} Rf5 {[%emt 0:31:00]} 42. Ke3 {[%emt 0:00:00]} Kc6 {[%emt 0:00:00]} 43. g3 {[%emt 0:00:00]} Rd5 {[%emt 0:00:00]} 1/2-1/2

[Event "German Championship Women 2022"]
[Site "Magdeburg"]
[Date "2022.08.15"]
[Round "2.13"]
[White "Just, Anita"]
[Black "Peglau, Sarah"]
[Result "1-0"]
[ECO "B00"]
[WhiteElo "1905"]
[BlackElo "1782"]
[Annotator "NA RC"]
[PlyCount "105"]
[EventDate "2022.08.14"]
[EventType "swiss"]
[EventCountry "GER"]
[SourceTitle "playchess.com"]
[Source "ChessBase"]
[SourceQuality "1"]
[TimeControl "40/5400+30:1800+30"]

1. e4 {[%emt 0:00:01]} d6 {[%emt 0:00:05]} 2. d4 {[%emt 0:00:06]} g6 {[%emt 0:00:06]} 3. Nc3 {[%emt 0:00:37]} a6 {[%emt 0:00:05]} 4. a4 {[%emt 0:02:31]} Nc6 {[%emt 0:00:43]} 5. Nf3 {[%emt 0:07:28]} Bg4 {[%emt 0:04:23]} 6. Be2 {[%emt 0:00:31]} Bg7 {[%emt 0:00:15]} 7. Be3 {[%emt 0:00:31]} e6 {[%emt 0:01:16]} 8. O-O {[%emt 0:02:36]} Nge7 {[%emt 0:01:20]} 9. Ng5 {[%emt 0:08:45]} Bxe2 {[%emt 0:00:41]} 10. Nxe2 {[%emt 0:00:05]} h6 {[%emt 0:02:00]} 11. Nh3 {[%emt 0:01:46]} O-O {[%emt 0:02:29]} 12. Qd2 {[%emt 0:05:40]} Kh7 {[%emt 0:02:02]} 13. a5 {[%emt 0:05:46]} Qd7 {[%emt 0:16:34]} 14. Ra3 {[%emt 0:02:22]} f5 {[%emt 0:06:11]} 15. exf5 {[%emt 0:15:28]} Nxf5 {[%emt 0:00:32]} 16. f4 {[%emt 0:10:15]} Nxe3 {[%emt 0:01:55]} 17. Qxe3 {[%emt 0:00:29]} Rf5 {[%emt 0:04:38]} 18. Qd2 {[%emt 0:02:43]} Raf8 {[%emt 0:03:38]} 19. g4 {[%emt 0:02:04]} R5f7 {[%emt 0:01:17]} 20. c4 $19 {[%emt 0:06:10]} (20. Kh1 $17 {was necessary.}) 20... e5 {[%emt 0:04:56]} 21. d5 {[%emt 0:06:09]} Nd4 {[%emt 0:03:29]} 22. Nxd4 {[%emt 0:03:22]} exd4 {[%emt 0:00:07]} 23. Rg3 {[%emt 0:01:11]} c5 {[%emt 0:02:18]} 24. f5 {[%emt 0:02:47]} Kh8 {[%emt 0:19:56]} 25. Nf4 {[%emt 0:01:36]} Re8 {[%emt 0:09:43]} 26. Nxg6+ {[%emt 0:00:26]} Kg8 {[%emt 0:00:13]} 27. Nf4 {[%emt 0:02:09]} Be5 {[%emt 0:00:35]} 28. Rh3 {[%emt 0:00:40]} Rg7 {[%emt 0:02:35]} 29. Ng6 {[%emt 0:00:14]} Rxg6 {[%emt 0:01:33]} 30. fxg6 {[%emt 0:00:10]} Qxg4+ {[%emt 0:00:17]} 31. Qg2 {[%emt 0:00:20]} Qxg2+ {[%emt 0:04:52]} 32. Kxg2 {[%emt 0:00:04]} Kg7 {[%emt 0:02:13]} 33. Rf7+ {[%emt 0:00:53]} Kxg6 {[%emt 0:00:06]} 34. Rxb7 {[%emt 0:00:05]} Bf4 {[%emt 0:01:07]} 35. Kf1 {[%emt 0:01:05]} Kg5 {[%emt 0:02:56]} 36. Rg7+ {[%emt 0:01:19]} Kf5 {[%emt 0:00:03]} 37. Rf3 {[%emt 0:01:18]} Ke4 {[%emt 0:00:16]} 38. Kg2 {[%emt 0:01:47]} d3 {[%emt 0:00:35]} 39. Rg4 {[%emt 0:01:55]} Rf8 {[%emt 0:00:06]} 40. Kf2 {[%emt 0:05:50]} d2 {[%emt 0:01:14]} 41. Rgxf4+ {[%emt 0:01:48]} Rxf4 {[%emt 0:00:14]} 42. Rxf4+ {[%emt 0:00:03]} Kxf4 {[%emt 0:00:07]} 43. Ke2 {[%emt 0:00:07]} h5 {[%emt 0:18:39]} 44. b4 {[%emt 0:14:13]} cxb4 {[%emt 0:03:45]} 45. c5 {[%emt 0:00:05]} Ke5 {[%emt 0:02:17]} 46. c6 {[%emt 0:00:26]} Kxd5 {[%emt 0:00:48]} 47. c7 {[%emt 0:00:11]} Kc4 {[%emt 0:01:17]} 48. c8=Q+ {[%emt 0:00:43]} Kb5 {[%emt 0:00:15]} 49. Qc7 {[%emt 0:00:20]} Ka4 {[%emt 0:00:54]} 50. Kxd2 {[%emt 0:01:12]} d5 {[%emt 0:00:41]} 51. Qb6 {[%emt 0:01:28]} Ka3 {[%emt 0:01:22]} 52. Qxa6 {[%emt 0:00:43]} b3 {[%emt 0:00:37]} 53. Qb5 {[%emt 0:00:12]} 1-0

[Event "German Championship Women 2022"]
[Site "Magdeburg"]
[Date "2022.08.16"]
[Round "3.1"]
[White "Schulze, Lara"]
[Black "Birkholz, Olga"]
[Result "1-0"]
[ECO "B28"]
[WhiteElo "2292"]
[BlackElo "2002"]
[Annotator "TA"]
[PlyCount "81"]
[EventDate "2022.08.14"]
[EventType "swiss"]
[EventCountry "GER"]
[SourceTitle "playchess.com"]
[Source "ChessBase"]
[SourceQuality "1"]
[TimeControl "40/5400+30:1800+30"]

{[%evp 12,81,59,50,64,60,70,71,71,77,111,104,109,101,100,87,129,95,135,139,158,87,87,64,122,122,127,103,139,120,151,131,140,131,183,182,214,205,331,289,406,400,404,406,411,399,397,387,385,351,347,347,391,414,462,464,410,413,685,677,782,779,768,766,747,751,711,775,764,739,706,724]} 1. e4 {[%emt 0:00:03]} c5 {[%emt 0:00:01]} 2. Nf3 {[%emt 0:00:08]} a6 {[%emt 0:00:19]} 3. c4 {[%emt 0:00:07]} d6 {[%emt 0:00:17]} 4. d4 {[%emt 0:00:13]} cxd4 {[%emt 0:03:30]} 5. Nxd4 {[%emt 0:00:07]} Nf6 {[%emt 0:00:04]} 6. Nc3 {[%emt 0:00:08]} Nc6 {[%emt 0:04:40]} 7. Be2 {[%emt 0:02:53]} e5 {[%emt 0:02:16] B28: Sicilian: 2 Nf3 a6 (O'Kelly Variation).} 8. Nc2 {[%emt 0:02:22]} Be6 {[%emt 0:01:31]} 9. Be3 {[%emt 0:06:13]} Rc8 {[%emt 0:08:31] White is better.} 10. Qd2 {[%emt 0:05:28] [#]} Na5 $146 {[%emt 0:04:40]} ({Predecessor:} 10... Be7 11. O-O O-O 12. Rac1 h6 13. Rfd1 Ne8 14. Nd5 Bg5 15. h3 Bxd5 16. cxd5 Bxe3 17. Qxe3 Ne7 18. Qb3 Nf6 19. Bd3 {½-½ (19) Eizenhammer,P (2054)-Nissen,J (2086) Bayern 2010}) 11. b3 {[%emt 0:09:31]} Be7 {[%emt 0:10:39]} 12. Rc1 {[%emt 0:03:18]} O-O {[%emt 0:04:07][%cal Ob7b5]} 13. O-O {[%emt 0:03:22]} Qc7 {[%emt 0:10:58]} 14. Nb4 {[%emt 0:03:39] [#] Strongly threatening Ncd5.} Qd8 {[%emt 0:07:26]} 15. Nbd5 {[%emt 0:09:38] aiming for Bb6.} Nc6 {[%emt 0:03:15]} 16. f3 {[%emt 0:05:53]} ({White should try} 16. Nxe7+ Nxe7 17. f3) 16... Bxd5 $16 {[%emt 0:07:48]} 17. cxd5 {[%emt 0:04:17]} Nb8 {[%emt 0:05:17]} ({Black should play} 17... Nd4 $1 $14) 18. Na4 {[%emt 0:02:37] Nb6 is the strong threat.} Nbd7 {[%emt 0:00:31] Inhibits Nb6.} 19. g3 {[%emt 0:07:06] White is much more active.} Re8 {[%emt 0:02:17]} 20. Rfd1 {[%emt 0:02:32]} h6 {[%emt 0:00:40]} 21. Bf1 {[%emt 0:01:09]} b5 {[%emt 0:06:29]} 22. Nb2 {[%emt 0:02:13][%cal Ba4b2,Bb2d1,Bd1c3,Bc3b5,Bb5c7,Bc7a6][%mdl 32]} Ra8 {[%emt 0:04:41]} (22... Nh7 $16 {was called for.} 23. Rxc8 Qxc8) 23. Rc6 {[%emt 0:05:51]} Qb8 {[%emt 0:00:54]} 24. Rdc1 {[%emt 0:00:56]} g5 {[%emt 0:07:04]} (24... Nh7 $142 25. h4 Nhf6) 25. Nd1 {[%emt 0:05:58]} a5 {[%emt 0:00:42]} (25... Qd8 $142 26. Bh3 Rf8) 26. Nc3 $18 {[%emt 0:01:51]} b4 {[%emt 0:00:41]} 27. Nb5 {[%emt 0:00:57]} Rf8 {[%emt 0:00:22]} 28. Nc7 {[%emt 0:04:19]} Ra7 {[%emt 0:00:06]} 29. Na6 {[%emt 0:01:59] Prevents Nc5.} Qa8 {[%emt 0:00:35]} 30. Bxa7 {[%emt 0:01:24]} Qxa7+ {[%emt 0:00:01]} 31. Qf2 {[%emt 0:01:36]} Qxf2+ {[%emt 0:00:28]} 32. Kxf2 {[%emt 0:00:03]} g4 {[%emt 0:00:05]} 33. Bb5 {[%emt 0:01:51]} gxf3 {[%emt 0:02:38]} 34. Kxf3 {[%emt 0:00:21]} Ne8 {[%emt 0:00:29]} (34... Nb8 $142 35. Rc7 Nxa6) 35. Rc8 {[%emt 0:01:09] White is clearly winning.} Ndf6 {[%emt 0:00:51]} 36. Nb8 {[%emt 0:00:25]} Ng7 {[%emt 0:01:39] [#]} 37. Nc6 $1 {[%emt 0:00:44][%csl LRa5,LRe7]} Nxd5 {[%emt 0:00:15]} 38. Rxf8+ {[%emt 0:01:02]} Kxf8 {[%emt 0:00:11]} 39. exd5 {[%emt 0:00:06]} Bg5 {[%emt 0:00:01]} 40. Rc2 {[%emt 0:00:51]} f5 {[%emt 0:00:03]} 41. Nxa5 {[%emt 0:30:48] Weighted Error Value: White=0.10 (very precise) /Black=0.38} 1-0

[Event "German Championship Women 2022"]
[Site "Magdeburg"]
[Date "2022.08.16"]
[Round "3.3"]
[White "Bazzazi, Elnaz"]
[Black "Kunze, Kerstin"]
[Result "1/2-1/2"]
[ECO "B25"]
[WhiteElo "1766"]
[BlackElo "2020"]
[Annotator "TA"]
[PlyCount "47"]
[EventDate "2022.08.14"]
[EventType "swiss"]
[EventCountry "GER"]
[SourceTitle "playchess.com"]
[Source "ChessBase"]
[SourceQuality "1"]
[TimeControl "40/5400+30:1800+30"]

{[%evp 14,47,11,-10,22,20,40,21,36,27,40,24,29,0,18,17,27,-58,-68,-73,-73,-69,-68,-88,-84,-81,-76,-97,-102,-127,0,-60,0,-112,0,-53]} 1. Nc3 {[%emt 0:00:17]} c5 {[%emt 0:01:05]} 2. e4 {[%emt 0:00:13]} d6 {[%emt 0:00:47]} 3. g3 {[%emt 0:00:20]} Nc6 {[%emt 0:00:37]} 4. Bg2 {[%emt 0:00:18]} g6 {[%emt 0:01:48]} 5. d3 {[%emt 0:00:06]} Bg7 {[%emt 0:00:30]} 6. Nh3 {[%emt 0:01:41]} Nf6 {[%emt 0:18:20][%cal Bg8f6,Bf6e8,Be8c7][%mdl 32]} 7. O-O {[%emt 0:00:38]} O-O {[%emt 0:01:44]} 8. f4 {[%emt 0:02:57]} Nd4 {[%emt 0:00:32] B25: Closed Sicilian: 3 g3, lines without early Be3.} 9. Nf2 {[%emt 0:01:29]} Ne8 {[%emt 0:07:14]} 10. Nd5 {[%emt 0:04:04]} Nc7 {[%emt 0:13:13]} 11. Ne3 {[%emt 0:00:52]} e6 {[%emt 0:00:54]} 12. c3 {[%emt 0:00:16]} Nc6 {[%emt 0:00:03] [#]} 13. f5 $146 {[%emt 0:04:11]} ({Predecessor:} 13. g4 f5 14. gxf5 gxf5 15. Nh3 h6 16. Kh1 Kh8 17. Rb1 Bd7 18. Bd2 b5 {½-½ (18) Neimer,V (2235)-Kudischewitsch,D (2324) Petah Tikva 2007}) 13... exf5 {[%emt 0:07:16]} 14. exf5 {[%emt 0:00:07]} Ne7 {[%emt 0:00:37]} 15. Nh3 {[%emt 0:00:20]} (15. fxg6 $11 hxg6 16. Ne4) 15... Nxf5 $15 {[%emt 0:03:19]} 16. Nxf5 {[%emt 0:05:08]} Bxf5 ({Resist} 16... gxf5 17. Qh5 $16) 17. Rxf5 {[%emt 0:07:13]} gxf5 {[%emt 0:00:41]} 18. Qf3 {[%emt 0:00:23]} Ne6 {[%emt 0:31:11]} 19. Qxf5 {[%emt 0:03:11] [#] Hoping for Be4.} Qf6 {[%emt 0:00:40]} 20. Qg4 {[%emt 0:05:15]} Qg6 {[%emt 0:01:08]} 21. Qf3 {[%emt 0:07:19]} Qf6 {[%emt 0:02:11]} (21... b5 $17 22. Qd5 Qg4) 22. Qg4 $1 {[%emt 0:00:24]} Qg6 {[%emt 0:01:10]} (22... Rae8 $15) 23. Qf3 $1 $17 {[%emt 0:00:07]} Qf6 {[%emt 0:00:16]} (23... b5 $17 24. Qd5 Qg4) 24. Qg4 $1 {[%emt 0:00:13] Weighted Error Value: White=0.18 (very precise) /Black=0.32} 1/2-1/2

[Event "German Championship Women 2022"]
[Site "Magdeburg"]
[Date "2022.08.16"]
[Round "3.4"]
[White "Fock, Sana"]
[Black "Falke, Ornella"]
[Result "1/2-1/2"]
[ECO "B23"]
[WhiteElo "1807"]
[BlackElo "1912"]
[Annotator "TA"]
[PlyCount "91"]
[EventDate "2022.08.14"]
[EventType "swiss"]
[EventCountry "GER"]
[SourceTitle "playchess.com"]
[Source "ChessBase"]
[SourceQuality "1"]
[TimeControl "40/5400+30:1800+30"]

{[%evp 12,91,-11,-24,-8,-17,2,-2,4,0,8,4,29,29,87,52,48,35,45,43,39,41,32,23,23,0,54,31,77,29,24,-27,47,48,81,81,81,81,81,66,83,81,81,81,81,81,79,85,97,82,88,70,87,0,74,40,85,0,4,12,28,14,120,100,114,101,212,219,215,227,220,219,225,180,175,0,177,0,220,193,202,195]} 1. e4 c5 2. Nc3 g6 3. f4 Bg7 4. Nf3 Nc6 5. Bb5 Nd4 6. O-O a6 7. Bd3 {The main line 7.Bd3 scores better than 7.Bc4.} d6 {B23: Closed Sicilian: Lines without g3.} 8. Nd5 e6 9. Ne3 Ne7 {The position is equal.} 10. c3 Nxf3+ 11. Qxf3 {[#]} Nc6 $146 ({Predecessor:} 11... f5 12. exf5 {½-½ (12) Mitkov,N (2492)-Kolev,A (2568) Skopje 2002}) 12. Bc2 h5 (12... Bd7 $11 {remains equal.}) 13. a4 (13. f5 {with more complications.} gxf5 14. exf5 Be5 15. fxe6 Bxe6 16. Bb3) 13... Qc7 {[%cal Oc6d4]} 14. d3 Bd7 15. Nc4 Na5 16. Nxa5 Qxa5 17. Ra3 Bc6 18. Qe2 O-O-O (18... O-O $11) 19. Be3 d5 $1 {[#]} 20. e5 (20. Rb1 $1 $16) 20... Bf8 $11 21. Raa1 (21. d4 $142) 21... h4 ({Black should try} 21... d4 $1 $11 22. Bd2 Qc7) 22. d4 $14 h3 23. g3 c4 24. Rfb1 Be7 25. Bd2 Kd7 26. b4 cxb3 27. Rxb3 Qc7 28. Bd3 Rb8 29. a5 Ke8 30. Kf2 Kf8 31. Rb6 Bd8 32. Rb3 (32. Kg1 $16) 32... Kg7 (32... Be7 $1 $11) 33. Rab1 {[%cal Od3a6]} Qxa5 {[#]} 34. c4 (34. Bxa6 $1 $16 Qc7 35. R3b2) 34... Qc7 $1 $11 {Strongly threatening ...dxc4.} 35. c5 $36 {[%cal Od3a6][%mdl 2048] White has good play.} Be7 36. Rb6 Qd7 {[#]} (36... Ra8 $11) 37. Bxa6 $1 $16 {[%mdl 576] Pin} Bd8 38. R6b3 {White is more active.} bxa6 39. Rxb8 $18 Bb5 40. R8xb5 axb5 41. Qxb5 Qa7 42. Qb2 Qa6 43. Qb5 $2 (43. Qc3 $18) 43... Qa2 $2 {Inhibits Ra1.} (43... Qa7 $1 $11 {and Black is okay.}) 44. Qb2 $2 (44. Ke3 $18) 44... Qc4 $2 (44... Qa6 $1 $11 {and Black has nothing to worry.}) 45. Qc3 {Black must now prevent Qxc4.} Qa6 46. Ra1 {Weighted Error Value: White=0.25 (precise) /Black=0.40} 1/2-1/2